fUST/lending_fUST_20250725
["ID","MTS","AMOUNT","RATE_DAILY","PERIOD"]
[374705859,1753420239901,-460.0,0.0001851,2]
[374705860,1753420239910,-460.0,0.0001851,2]
[374705863,1753420239920,-460.0,0.0001851,2]
[374705864,1753420239929,-460.0,0.0001851,2]
[374705867,1753420239939,-460.0,0.00018511,2]
[374705869,1753420239949,-460.0,0.00018511,2]
[374705870,1753420239958,-460.0,0.00018514,2]
[374705872,1753420239967,-201.68910297,0.00018514,2]
[374705874,1753420239976,-160.0,0.00018529,2]
[374705877,1753420239987,-460.0,0.0001862,2]
[374705878,1753420239996,-420.0,0.00018713,2]
[374705880,1753420240006,-1200.0,0.00018714,2]
[374705883,1753420240015,-500.53543036,0.00018761,2]
[374705884,1753420240024,-502.47379318,0.00018761,2]
[374705886,1753420240034,-500.0,0.00018761,2]
[374705888,1753420240046,-460.0,0.0001878,2]
[374705890,1753420240056,-460.0,0.00018781,2]
[374705892,1753420240065,-460.0,0.00018781,2]
[374705894,1753420240075,-477.09249486,0.00018781,2]
[374705896,1753420240086,-460.0,0.00018781,2]
[374705898,1753420240097,-460.0,0.00018784,2]
[374705900,1753420240107,-658.47,0.00018784,2]
[374705902,1753420240121,-460.0,0.00018784,2]
[374705904,1753420240131,-460.0,0.00018784,2]
[374705906,1753420240141,-460.0,0.00018784,2]
[374705908,1753420240151,-460.0,0.00018784,2]
[374705910,1753420240161,-460.0,0.00018785,2]
[374705912,1753420240170,-460.0,0.00018785,2]
[374705914,1753420240180,-460.0,0.00018788,2]
[374705916,1753420240189,-1680.0,0.00018805,2]
[374705918,1753420240198,-460.0,0.00018894,2]
[374705920,1753420240208,-4373.95586709,0.000189,2]
[374705922,1753420240217,-3956.88558358,0.000189,2]
[374705925,1753420240227,-460.0,0.00019004,2]
[374705927,1753420240236,-460.0,0.00019054,2]
[374705929,1753420240246,-460.0,0.00019055,2]
[374705931,1753420240256,-460.0,0.00019055,2]
[374705932,1753420240266,-460.0,0.00019055,2]
[374705935,1753420240282,-460.0,0.00019058,2]
[374705937,1753420240293,-658.47,0.00019058,2]
[374705938,1753420240303,-460.0,0.00019058,2]
[374705940,1753420240312,-567.01081775,0.00019058,2]
[374705943,1753420240322,-460.0,0.00019058,2]
[374705944,1753420240332,-460.0,0.00019058,2]
[374705947,1753420240343,-460.0,0.00019059,2]
[374705949,1753420240352,-460.0,0.00019062,2]
[374705951,1753420240362,-260.0,0.00019077,2]
[374705953,1753420240372,-460.0,0.00019168,2]
[374705955,1753420240382,-3956.88558356,0.00019176,2]
[374705957,1753420240393,-250.790233,0.00019178,2]
[374705959,1753420240402,-666.0,0.00019178,2]
[374705961,1753420240412,-4009.5366706,0.00019178,2]
[374705963,1753420240421,-1000.0,0.00019309,2]
[374705965,1753420240431,-553.27561892,0.00019328,2]
[374705967,1753420240451,-460.0,0.00019329,2]
[374705969,1753420240463,-552.46540363,0.00019329,2]
[374705971,1753420240473,-460.0,0.00019329,2]
[374705973,1753420240483,-92163.32524328,0.00019329,2]
[374705975,1753420240493,-460.0,0.00019332,2]
[374705977,1753420240502,-658.47,0.00019332,2]
[374705979,1753420240512,-460.0,0.00019332,2]
[374705981,1753420240522,-512.45575027,0.00019332,2]
[374705983,1753420240531,-460.0,0.00019332,2]
[374705985,1753420240540,-460.0,0.00019333,2]
[374705987,1753420240550,-405.05761521,0.00019336,2]
[374705989,1753420240559,-605.54940934,0.000194,2]
[374705991,1753420240569,-460.0,0.00019442,2]
[374705993,1753420240579,-3956.88558356,0.00019452,2]
[374705995,1753420240588,-160.0,0.00019493,2]
[374705997,1753420240599,-231.20877768,0.00019493,2]
[374705999,1753420240609,-476.88235691,0.00019493,2]
[374706001,1753420240618,-160.0,0.00019493,2]
[374706003,1753420240629,-215.93003454,0.00019493,2]
[374706005,1753420240638,-214.7599002,0.00019493,2]
[374706007,1753420240648,-526.33361954,0.00019493,2]
[374706009,1753420240657,-160.0,0.00019493,2]
[374706011,1753420240668,-12627.2413641,0.00019493,2]
[374706013,1753420240678,-160.0,0.00019493,2]
[374706015,1753420240690,-160.0,0.00019493,2]
[374706017,1753420240699,-1489.38777334,0.00019573,2]
[374706019,1753420240709,-460.0,0.00019603,2]
[374706021,1753420240719,-460.0,0.00019603,2]
[374706023,1753420240728,-460.0,0.00019606,2]
[374706025,1753420240737,-658.47,0.00019606,2]
[374706027,1753420240746,-460.0,0.00019606,2]
[374706029,1753420240756,-460.0,0.00019606,2]
[374706031,1753420240765,-460.0,0.00019607,2]
[374706033,1753420240775,-360.0,0.00019624,2]
[374706036,1753420240785,-840.4016166,0.00019643,2]
[374706037,1753420240794,-460.0,0.00019716,2]
[374706040,1753420240804,-3956.88558356,0.00019728,2]
[374706042,1753420240814,-866.2,0.00019781,3]
[374706044,1753420240823,-433.1,0.00019781,3]
[374706046,1753420240832,-1615.75524555,0.00019857,2]
[374706048,1753420240844,-460.0,0.00019877,2]
[374706050,1753420240854,-460.0,0.00019877,2]
[374706052,1753420240863,-460.0,0.0001988,2]
[374706054,1753420240875,-658.47,0.0001988,2]
[374706056,1753420240885,-460.0,0.0001988,2]
[374706058,1753420240895,-460.0,0.0001988,2]
[374706060,1753420240905,-460.0,0.00019881,2]
[374706062,1753420240915,-460.0,0.0001999,2]
[374706064,1753420240924,-3956.88558356,0.00020003,2]
[374706066,1753420240934,-1592.62299071,0.00020013,2]
[374706068,1753420240944,-306.36,0.000201,2]
[374706070,1753420240954,-460.0,0.00020151,2]
[374706072,1753420240964,-460.0,0.00020151,2]
[374706074,1753420240974,-273.37751053,0.00020154,2]
[374706076,1753420240983,-658.47,0.00020154,2]
[374706078,1753420240994,-460.0,0.00020154,2]
[374706080,1753420241004,-460.0,0.00020154,2]
[374706083,1753420241014,-460.0,0.00020155,2]
[374706085,1753420241023,-460.0,0.00020172,2]
[374706086,1753420241033,-531.339146,0.00020187,2]
[374706088,1753420241046,-2422.19763735,0.00020192,2]
[374706090,1753420241055,-287.38478724,0.00020219,3]
[374706092,1753420241065,-3956.88558356,0.00020279,3]
[374706094,1753420241075,-294.4,0.00020288,3]
[374706096,1753420241087,-204.89080524,0.00020425,2]
[374706099,1753420241098,-481.66948252,0.00020425,2]
[374706101,1753420241107,-658.47,0.00020428,2]
[374706103,1753420241119,-460.0,0.00020428,2]
[374706104,1753420241130,-460.0,0.00020428,2]
[374706106,1753420241140,-460.0,0.00020429,2]
[374706108,1753420241150,-587.0,0.00020435,2]
[374706111,1753420241159,-500.0,0.00020547,2]
[374706112,1753420241169,-500.0,0.00020547,2]
[374706115,1753420241178,-500.0,0.00020547,2]
[374706130,1753420241321,-500.0,0.00020547,2]
[374706132,1753420241331,-500.0,0.00020547,2]
[374706134,1753420241344,-576.26,0.00020547,2]
[374706136,1753420241353,-500.0,0.00020547,2]
[374706139,1753420241364,-500.0,0.00020547,2]
[374706141,1753420241374,-3956.88558356,0.00020555,3]
[374706143,1753420241383,-214.7599002,0.0002056,3]
[374706145,1753420241392,-160.0,0.0002056,3]
[374706147,1753420241403,-12627.2413641,0.0002056,3]
[374706149,1753420241413,-500.0,0.00020607,2]
[374706151,1753420241422,-2351.0,0.00020639,2]
[374706153,1753420241432,-658.47,0.00020702,2]
[374706155,1753420241441,-460.0,0.00020702,2]
[374706157,1753420241450,-460.0,0.00020702,2]
[374706159,1753420241460,-460.0,0.00020703,2]
[374706161,1753420241470,-560.0,0.0002072,2]
[374706163,1753420241480,-294.4,0.00020815,4]
[374706165,1753420241490,-3956.88558356,0.00020831,4]
[374706167,1753420241500,-658.47,0.00020976,2]
[374706169,1753420241510,-460.0,0.00020976,2]
[374706171,1753420241520,-460.0,0.00020976,2]
[374706173,1753420241530,-460.0,0.00020976,2]
[374706175,1753420241540,-5449.94468404,0.00020985,2]
[374706177,1753420241550,-3000.0,0.00021,2]
[374706179,1753420241559,-3000.0,0.0002101,2]
[374706181,1753420241569,-3000.0,0.0002102,2]
[374706183,1753420241580,-5088.322868,0.0002103,2]
[374706185,1753420241589,-3956.88558356,0.00021107,4]
[374706187,1753420241599,-658.47,0.0002125,2]
[374706189,1753420241609,-242.60573906,0.0002125,2]
[374706191,1753420241619,-460.0,0.0002125,2]
[374706193,1753420241629,-460.0,0.0002125,2]
[374706195,1753420241638,-660.0,0.00021268,2]
[374706197,1753420241648,-1151.627,0.00021341,2]
[374706199,1753420241658,-294.4,0.00021343,4]
[374706201,1753420241668,-3956.88558356,0.00021383,5]
[374706203,1753420241679,-500.0,0.00021443,2]
[374706205,1753420241689,-658.47,0.00021524,2]
[374706207,1753420241698,-252.34850789,0.00021524,2]
[374706209,1753420241708,-529.13262003,0.00021524,2]
[374706211,1753420241717,-1592.62299071,0.0002162,2]
[374706213,1753420241727,-3956.88558356,0.00021659,5]
[374706215,1753420241736,-500.0,0.00021703,2]
[374706217,1753420241746,-5160.41142925,0.00021704,2]
[374706219,1753420241756,-9679.10175886,0.00021777,2]
[374706221,1753420241765,-5951.59354226,0.00021794,2]
[374706223,1753420241775,-658.47,0.00021798,2]
[374706225,1753420241784,-760.0,0.00021816,2]
[374706227,1753420241794,-294.4,0.0002187,4]
[374706229,1753420241803,-648.0,0.0002188,2]
[374706231,1753420241812,-2157.0,0.0002188,2]
[374706233,1753420241822,-969.0,0.0002188,2]
[374706235,1753420241831,-407.0,0.0002188,2]
[374706237,1753420241840,-421.487,0.0002188,2]
[374706239,1753420241850,-348.2323324,0.00021917,2]
[374706241,1753420241859,-150.0,0.00021918,2]
[374706243,1753420241869,-3956.88558356,0.00021934,6]
[374706245,1753420241878,-215.0738,0.00021935,2]
[374706247,1753420241888,-2712.88330172,0.00021935,2]
[374706249,1753420241896,-150.0,0.00021987,2]
[374706251,1753420241906,-3373.9,0.00022,7]
[374706253,1753420241915,-8216.51,0.00022,7]
[374706255,1753420241924,-29188.28,0.00022,2]
[374706257,1753420241934,-2032.69,0.00022,7]
[374706259,1753420241943,-214.7599002,0.00022,7]
[374706261,1753420241953,-160.0,0.00022,7]
[374706263,1753420241963,-12627.2413641,0.00022,7]
[374706265,1753420241972,-1003.79,0.00022,2]
[374706267,1753420241982,-179.87408814,0.00022005,2]
[374706269,1753420241992,-154.457969,0.00022044,3]
[374706271,1753420242001,-658.47,0.00022072,2]
[374706273,1753420242011,-150.0,0.00022106,2]
[374706275,1753420242020,-150.0,0.00022106,2]
[374706277,1753420242030,-3956.88558356,0.0002221,6]
[374706279,1753420242045,-823.0,0.00022317,2]
[374706281,1753420242055,-658.47,0.00022346,2]
[374706283,1753420242064,-860.0,0.00022364,2]
[374706285,1753420242075,-294.4,0.00022397,5]
[374706287,1753420242086,-173.0,0.00022411,7]
[374706289,1753420242096,-1496.17,0.00022465,2]
[374706291,1753420242105,-300.0,0.00022466,2]
[374706293,1753420242116,-3956.88558356,0.00022486,7]
[374706295,1753420242125,-1003.79,0.000225,2]
[374706297,1753420242134,-166.6164911,0.00022575,2]
[374706299,1753420242144,-250.790233,0.00022603,2]
[374706301,1753420242153,-250.0,0.00022608,2]
[374706303,1753420242162,-658.47,0.0002262,2]
[374706305,1753420242172,-317.46577424,0.00022638,2]
[374706307,1753420242181,-2738.0,0.00022651,2]
[374706309,1753420242190,-3956.88558356,0.00022762,7]
[374706311,1753420242199,-500.0,0.00022799,2]
[374706313,1753420242210,-166.6164911,0.00022877,2]
[374706315,1753420242220,-658.47,0.00022893,2]
[374706317,1753420242229,-960.0,0.00022912,2]
[374706319,1753420242239,-294.4,0.00022924,5]
[374706321,1753420242248,-168.0,0.00022967,2]
[374706323,1753420242258,-168.0,0.00022975,2]
[374706325,1753420242267,-215.93003454,0.00023,3]
[374706327,1753420242277,-160.0,0.00023,3]
[374706329,1753420242286,-2032.69,0.00023,7]
[374706331,1753420242296,-840.4016166,0.00023,3]
[374706333,1753420242305,-160.0,0.00023,3]
[374706335,1753420242315,-160.0,0.00023,3]
[374706337,1753420242324,-160.0,0.00023,3]
[374706339,1753420242334,-160.0,0.00023,2]
[374706341,1753420242345,-160.0,0.00023,3]
[374706343,1753420242355,-1003.79,0.00023,2]
[374706345,1753420242364,-231.20877768,0.00023,3]
[374706347,1753420242374,-526.33361954,0.00023,3]
[374706349,1753420242383,-301.84887553,0.00023014,2]
[374706351,1753420242393,-168.0,0.00023023,2]
[374706353,1753420242403,-168.0,0.00023027,2]
[374706355,1753420242412,-3956.88558356,0.00023038,8]
[374706357,1753420242422,-154.457969,0.0002305,2]
[374706359,1753420242431,-3373.9,0.000231,7]
[374706361,1753420242441,-8216.51,0.000231,7]
[374706363,1753420242450,-29188.28,0.000231,2]
[374706365,1753420242459,-658.54540514,0.00023167,2]
[374706367,1753420242469,-168.0,0.00023199,2]
[374706370,1753420242478,-168.0,0.00023214,2]
[374706372,1753420242488,-1592.62299071,0.00023226,2]
[374706374,1753420242497,-878.0,0.00023286,6]
[374706376,1753420242507,-223.0315306,0.00023304,2]
[374706378,1753420242516,-3956.88558356,0.00023314,9]
[374706380,1753420242525,-154.457969,0.00023326,3]
[374706382,1753420242535,-878.0,0.00023386,6]
[374706384,1753420242544,-294.4,0.00023451,6]
[374706386,1753420242554,-168.0,0.00023452,2]
[374706388,1753420242564,-1020.0,0.0002346,2]
[374706390,1753420242573,-168.0,0.00023465,2]
[374706392,1753420242582,-168.0,0.00023475,2]
[374706394,1753420242592,-878.0,0.00023486,4]
[374706396,1753420242602,-1003.79,0.00023508,2]
[374706398,1753420242611,-878.0,0.00023586,3]
[374706400,1753420242621,-3956.88558356,0.0002359,9]
[374706402,1753420242630,-168.0,0.00023593,2]
[374706404,1753420242640,-151.0,0.000236,7]
[374706406,1753420242650,-168.0,0.00023608,2]
[374706409,1753420242660,-2200.0,0.00023636,2]
[374706411,1753420242669,-500.688,0.00023636,2]
[374706413,1753420242679,-878.0,0.00023686,5]
[374706415,1753420242688,-481.0,0.00023695,2]
[374706417,1753420242697,-154.457969,0.00023775,30]
[374706419,1753420242706,-878.0,0.00023786,4]
[374706421,1753420242716,-456.543951,0.000238,2]
[374706423,1753420242726,-154.457969,0.00023825,9]
[374706425,1753420242736,-154.457969,0.00023838,9]
[374706427,1753420242746,-154.457969,0.0002385,9]
[374706428,1753420242755,-3956.88558356,0.00023866,10]
[374706429,1753420242765,-481.0,0.00023878,2]
[374706430,1753420242774,-878.0,0.00023886,6]
[374706431,1753420242783,-500.0,0.00023895,2]
[374706432,1753420242793,-4373.95586709,0.000239,2]
[374706433,1753420242803,-12216.23530392,0.000239,7]
[374706434,1753420242812,-168.0,0.00023957,2]
[374706435,1753420242821,-294.4,0.00023978,6]
[374706436,1753420242830,-878.0,0.00023986,6]
[374706437,1753420242839,-215.93003454,0.00024,7]
[374706438,1753420242849,-2032.69,0.00024,7]
[374706439,1753420242858,-160.0,0.00024,7]
[374706440,1753420242867,-526.33361954,0.00024,7]
[374706441,1753420242876,-1003.79,0.00024011,2]
[374706442,1753420242885,-500.0,0.00024027,30]
[374706443,1753420242895,-500.0,0.00024055,2]
[374706444,1753420242904,-481.0,0.00024072,2]
[374706445,1753420242913,-878.0,0.00024086,7]
[374706446,1753420242923,-8216.51,0.000241,7]
[374706447,1753420242932,-3373.9,0.000241,7]
[374706448,1753420242941,-29188.28,0.000241,2]
[374706449,1753420242950,-3956.88558356,0.00024141,10]
[374706451,1753420242960,-154.457969,0.00024148,6]
[374706453,1753420242969,-168.0,0.00024148,2]
[374706454,1753420242978,-500.0,0.00024159,2]
[374706455,1753420242987,-878.0,0.00024186,5]
[374706456,1753420242996,-500.0,0.00024202,2]
[374706457,1753420243005,-878.0,0.00024286,4]
[374706458,1753420243014,-151.0,0.000243,8]
[374706459,1753420243023,-168.0,0.0002431,2]
[374706460,1753420243033,-500.0,0.00024314,2]
[374706461,1753420243046,-500.0,0.00024329,2]
[374706462,1753420243056,-500.0,0.00024361,2]
[374706463,1753420243065,-1152.0,0.00024372,2]
[374706464,1753420243075,-878.0,0.00024386,4]
[374706465,1753420243084,-3956.88558356,0.00024417,11]
[374706466,1753420243093,-154.457969,0.00024448,8]
[374706467,1753420243103,-168.0,0.00024456,2]
[374706468,1753420243114,-500.0,0.00024462,2]
[374706469,1753420243123,-500.0,0.00024479,2]
[374706470,1753420243132,-878.0,0.00024486,7]
[374706471,1753420243142,-294.4,0.00024506,6]
[374706472,1753420243151,-1003.79,0.00024513,2]
[374706473,1753420243160,-154.457969,0.0002455,30]
[374706474,1753420243170,-168.0,0.00024574,2]
[374706475,1753420243179,-154.457969,0.00024575,2]
[374706477,1753420243189,-878.0,0.00024586,5]
[374706478,1753420243199,-500.0,0.00024602,31]
[374706480,1753420243209,-176.0,0.00024603,13]
[374706482,1753420243219,-154.457969,0.00024608,3]
[374706484,1753420243230,-500.0,0.00024645,2]
[374706486,1753420243239,-300.0,0.00024657,2]
[374706488,1753420243250,-300.0,0.00024657,2]
[374706490,1753420243261,-300.0,0.00024657,2]
[374706492,1753420243273,-300.0,0.00024657,2]
[374706494,1753420243283,-429.88156901,0.00024657,2]
[374706496,1753420243294,-200.0,0.00024658,15]
[374706498,1753420243304,-380.0,0.00024658,2]
[374706500,1753420243314,-500.0,0.00024665,2]
[374706502,1753420243326,-500.0,0.0002467,2]
[374706504,1753420243336,-231.28369723,0.00024673,2]
[374706506,1753420243347,-878.0,0.00024686,3]
[374706508,1753420243357,-3956.88558356,0.00024693,11]
[374706510,1753420243366,-500.0,0.00024761,2]
[374706512,1753420243376,-878.0,0.00024786,4]
[374706514,1753420243386,-6481.1919398,0.000248,2]
[374706516,1753420243396,-643.0,0.000248,2]
[374706518,1753420243406,-1592.62299071,0.00024832,2]
[374706520,1753420243415,-500.0,0.00024861,2]
[374706522,1753420243425,-648.0,0.0002488,2]
[374706524,1753420243435,-2157.0,0.0002488,2]
[374706526,1753420243444,-969.0,0.0002488,2]
[374706528,1753420243454,-407.0,0.0002488,2]
[374706530,1753420243464,-407.0,0.0002488,2]
[374706532,1753420243473,-878.0,0.00024886,6]
[374706534,1753420243483,-160.0,0.00024889,3]
[374706536,1753420243494,-500.0,0.00024896,2]
[374706538,1753420243506,-200.45473655,0.00024899,2]
[374706540,1753420243517,-151.0,0.000249,7]
[374706541,1753420243526,-151.0,0.000249,7]
[374706542,1753420243536,-151.0,0.000249,7]
[374706543,1753420243546,-493503.55313784,0.000249,2]
[374706547,1753420243615,-343349.09836916,0.000249,2]
[374706548,1753420243625,-167.0,0.00024932,7]
[374706549,1753420243635,-3956.88558356,0.00024969,12]
[374706550,1753420243645,-878.0,0.00024986,3]
[374706551,1753420243656,-150.0,0.00024987,2]
[374706552,1753420243666,-500.0,0.00024991,2]
[374706554,1753420243676,-1280.681488,0.00025,5]
[374706555,1753420243686,-2032.69,0.00025,7]
[374706556,1753420243696,-160.0,0.00025,10]
[374706560,1753420243731,-5160.41142925,0.00025,2]
[374706561,1753420243741,-167.0,0.00025,7]
[374706562,1753420243751,-500.0,0.00025002,2]
[374706564,1753420243760,-1003.79,0.0002501,7]
[374706565,1753420243769,-500.0,0.00025011,2]
[374706566,1753420243779,-294.4,0.00025033,7]
[374706568,1753420243788,-600.0,0.00025044,2]
[374706570,1753420243798,-481.0,0.00025047,2]
[374706572,1753420243808,-500.0,0.0002508,5]
[374706574,1753420243818,-168.0,0.00025084,2]
[374706575,1753420243827,-154.457969,0.00025084,8]
[374706576,1753420243836,-878.0,0.00025086,5]
[374706577,1753420243847,-8216.51,0.000251,7]
[374706578,1753420243857,-3373.9,0.000251,7]
[374706579,1753420243867,-22250.56466722,0.000251,2]
[374706580,1753420243897,462.67029886,0.00016864,2]
[374706581,1753420243911,-6937.71533278,0.000251,2]
[374706582,1753420243920,-168.0,0.00025104,2]
[374706583,1753420243930,-150.0,0.00025106,2]
[374706584,1753420243940,-150.0,0.00025106,2]
[374706585,1753420243950,-429.674968,0.00025123,2]
[374706586,1753420243960,-211.0,0.0002514,13]
[374706587,1753420243969,-154.457969,0.00025151,6]
[374706588,1753420243985,-168.0,0.00025177,2]
[374706589,1753420243995,-515.84098625,0.00025178,32]
[374706590,1753420244005,-878.0,0.00025186,3]
[374706591,1753420244015,-1496.17,0.00025205,4]
[374706592,1753420244025,-206.0,0.0002521,2]
[374706593,1753420244034,-129.14074396,0.0002521,2]
[374706599,1753420244476,-359.99275684,0.00018506,2]
[374706601,1753420244491,-100.00724316,0.00018506,2]
[374706603,1753420244501,-460.0,0.0001878,2]
[374706604,1753420244510,-460.0,0.00019054,2]
[374706605,1753420244520,-460.0,0.00019328,2]
[374706607,1753420244530,-460.0,0.00019602,2]
[374706608,1753420244540,-460.0,0.00019876,2]
[374706609,1753420244549,-76.85925604,0.0002521,2]
[374706610,1753420244559,-3956.88558356,0.00025245,12]
[374706611,1753420244572,-190.0,0.00025246,2]
[374706612,1753420244590,-481.0,0.00025249,2]
[374706614,1753420244601,-500.0,0.00025252,2]
[374706615,1753420244610,-500.0,0.00025265,2]
[374706616,1753420244620,-500.0,0.00025266,2]
[374706618,1753420244630,-432.67773667,0.00025279,2]
[374706620,1753420244639,-500.0,0.0002528,5]
[374706621,1753420244649,-500.0,0.0002528,5]
[374706623,1753420244658,-878.0,0.00025286,7]
[374706625,1753420244668,-600.0,0.00025304,2]
[374706627,1753420244678,-500.0,0.00025311,2]
[374706629,1753420244687,-500.0,0.00025322,2]
[374706631,1753420244698,-4000.0,0.00025322,4]
[374706633,1753420244707,-154.457969,0.00025325,30]
[374706635,1753420244717,-500.0,0.00025336,2]
[374706637,1753420244727,-168.0,0.00025344,2]
[374706639,1753420244738,-3558.35108385,0.0002535,2]
[374706641,1753420244747,-878.0,0.00025386,5]
[374706643,1753420244756,-500.0,0.0002548,5]
[374706645,1753420244766,-878.0,0.00025486,6]
[374706647,1753420244776,-3558.35108385,0.00025491,2]
[374706649,1753420244785,-2000.0,0.000255,2]
[374706651,1753420244794,-2000.0,0.000255,2]
[374706653,1753420244804,-500.0,0.00025516,2]
[374706655,1753420244814,-1003.79,0.00025518,7]
[374706657,1753420244824,-3956.88558356,0.00025521,13]
[374706659,1753420244833,-294.4,0.0002556,7]
[374706661,1753420244843,-759.597182,0.00025565,16]
[374706663,1753420244853,-600.0,0.00025565,2]
[374706665,1753420244863,-313.71,0.00025586,11]
[374706667,1753420244873,-878.0,0.00025586,7]
[374706669,1753420244882,-500.0,0.0002559,5]
[374706671,1753420244892,-806.63074411,0.000256,2]
[374706673,1753420244902,-500.0,0.00025635,2]
[374706675,1753420244911,-206.0,0.0002565,2]
[374706677,1753420244921,-206.0,0.0002565,2]
[374706679,1753420244930,-206.0,0.0002565,2]
[374706681,1753420244940,-1311.03119773,0.00025678,2]
[374706683,1753420244950,-878.0,0.00025686,3]
[374706685,1753420244959,-501.93,0.00025719,2]
[374706687,1753420244970,-154.457969,0.0002572,8]
[374706689,1753420244980,-878.0,0.00025786,5]
[374706691,1753420244990,-500.0,0.0002579,5]
[374706693,1753420245000,-3956.88558356,0.00025797,13]
[374706695,1753420245010,-1311.03119773,0.00025799,2]
[374706697,1753420245019,-1002.502819,0.000258,2]
[374706699,1753420245031,-500.51540537,0.00025819,2]
[374706701,1753420245045,-600.0,0.00025826,2]
[374706703,1753420245055,-900.0,0.00025849,2]
[374706705,1753420245066,-500.0,0.00025865,2]
[374706707,1753420245077,-878.0,0.00025886,6]
[374706710,1753420245087,-154.457969,0.0002589,3]
[374706712,1753420245099,-167.0,0.0002589,7]
[374706714,1753420245110,-1311.03119773,0.0002592,2]
[374706716,1753420245120,-2488.55319508,0.00025965,2]
[374706721,1753420245158,5000.0,0.00017,2]
[374706745,1753420245398,-460.0,0.0002015,2]
[374706747,1753420245408,-460.0,0.00020424,2]
[374706749,1753420245418,-460.0,0.00020698,2]
[374706751,1753420245427,-460.0,0.00020972,2]
[374706753,1753420245436,-460.0,0.00021246,2]
[374706755,1753420245446,-460.0,0.0002152,2]
[374706757,1753420245456,-460.0,0.00021794,2]
[374706759,1753420245467,-425.35433344,0.00022068,2]
[374706762,1753420245476,-1069.79788878,0.00025965,2]
[374706764,1753420245486,-878.0,0.00025986,5]
[374706765,1753420245496,-151.0,0.00026,7]
[374706766,1753420245506,-151.0,0.00026,7]
[374706767,1753420245516,-151.0,0.00026,7]
[374706768,1753420245527,-476.88235691,0.00026,7]
[374706769,1753420245537,-2032.69,0.00026,7]
[374706770,1753420245547,-151.0,0.0002602,7]
[374706771,1753420245556,-189.316117,0.0002602,7]
[374706772,1753420245566,-153.236711,0.0002602,7]
[374706773,1753420245575,-151.0,0.0002602,7]
[374706774,1753420245585,-151.0,0.0002602,7]
[374706775,1753420245596,-241.683384,0.0002602,7]
[374706777,1753420245606,-151.0,0.0002602,7]
[374706778,1753420245616,-151.0,0.0002602,7]
[374706780,1753420245626,-151.0,0.0002602,7]
[374706782,1753420245636,-216.195438,0.0002602,7]
[374706784,1753420245645,-152.4612,0.0002602,7]
[374706786,1753420245655,-151.0,0.0002602,7]
[374706788,1753420245665,-151.0,0.0002602,7]
[374706790,1753420245675,-151.0,0.0002602,7]
[374706792,1753420245684,-151.0,0.0002602,7]
[374706794,1753420245695,-151.0,0.0002602,7]
[374706796,1753420245705,-151.0,0.0002602,7]
[374706799,1753420245715,-151.0,0.0002602,7]
[374706801,1753420245725,-151.0,0.0002602,7]
[374706803,1753420245736,-151.0,0.0002602,7]
[374706805,1753420245746,-229.107257,0.0002602,7]
[374706807,1753420245756,-348.74880548,0.0002602,2]
[374706809,1753420245766,-367.545955,0.0002602,7]
[374706811,1753420245776,-367.545955,0.0002602,7]